fUSD/lending_fUSD_20260614
["ID","MTS","AMOUNT","RATE_DAILY","PERIOD"]
[425044681,1781445058000,-1458.94,0.00027671,8]
[425044671,1781445058000,-500.0,0.00027671,8]
[425044693,1781445058000,-500.0,0.00027671,8]
[425044689,1781445058000,-591.16,0.00027671,8]
[425044683,1781445058000,-478.0,0.00027671,2]
[425044685,1781445058000,-500.0,0.00027671,8]
[425044692,1781445058000,-500.0,0.00027671,8]
[425044684,1781445058000,-500.0,0.00027671,8]
[425044688,1781445058000,-651.0,0.00027671,8]
[425044690,1781445058000,-602.87,0.00027671,8]
[425044691,1781445058000,-500.0,0.00027671,8]
[425044686,1781445058000,-1341.6,0.00027671,8]
[425044687,1781445058000,-500.0,0.00027671,8]
[425044694,1781445058000,-505.03,0.00027671,8]
[425044696,1781445058000,-632.56,0.00027671,8]
[425044698,1781445058000,-500.0,0.00027671,8]
[425044682,1781445058000,-823.59,0.00027671,8]
[425044668,1781445058000,-500.0,0.00027671,8]
[425044652,1781445058000,-598.71,0.00027671,8]
[425044666,1781445058000,-500.0,0.00027671,8]
[425044697,1781445058000,-500.0,0.00027671,8]
[425044643,1781445058000,-626.34,0.00027671,8]
[425044644,1781445058000,-851.15,0.00027671,8]
[425044640,1781445058000,-500.0,0.00027671,8]
[425044639,1781445058000,-1047.3,0.00027671,8]
[425044642,1781445058000,-500.0,0.00027671,8]
[425044641,1781445058000,-841.96,0.00027671,8]
[425044645,1781445058000,-623.39,0.00027671,8]
[425044647,1781445058000,-500.0,0.00027671,8]
[425044648,1781445058000,-500.0,0.00027671,8]
[425044656,1781445058000,-500.0,0.00027671,8]
[425044650,1781445058000,-1312.82,0.00027671,8]
[425044649,1781445058000,-580.56,0.00027671,8]
[425044665,1781445058000,-567.36,0.00027671,8]
[425044651,1781445058000,-500.0,0.00027671,8]
[425044646,1781445058000,-500.0,0.00027671,8]
[425044654,1781445058000,-500.0,0.00027671,8]
[425044655,1781445058000,-1142.71,0.00027671,8]
[425044653,1781445058000,-500.0,0.00027671,8]
[425044659,1781445058000,-500.0,0.00027671,8]
[425044669,1781445058000,-500.0,0.00027671,8]
[425044658,1781445058000,-500.0,0.00027671,8]
[425044662,1781445058000,-778.72,0.00027671,8]
[425044660,1781445058000,-500.0,0.00027671,8]
[425044661,1781445058000,-500.0,0.00027671,8]
[425044663,1781445058000,-500.0,0.00027671,8]
[425044664,1781445058000,-500.0,0.00027671,8]
[425044667,1781445058000,-500.0,0.00027671,8]
[425044657,1781445058000,-500.0,0.00027671,8]
[425044705,1781445058000,-500.0,0.00027671,8]
[425044726,1781445058000,-245.05100328,0.00027671,8]
[425044703,1781445058000,-178.5972958,0.00027671,2]
[425044743,1781445058000,-500.0,0.00027671,8]
[425044734,1781445058000,-500.0,0.00027671,8]
[425044736,1781445058000,-500.0,0.00027671,8]
[425044735,1781445058000,-500.0,0.00027671,8]
[425044742,1781445058000,-516.31,0.00027671,8]
[425044740,1781445058000,-719.02,0.00027671,8]
[425044737,1781445058000,-1083.26,0.00027671,8]
[425044738,1781445058000,-500.0,0.00027671,8]
[425044739,1781445058000,-500.0,0.00027671,8]
[425044741,1781445058000,-500.0,0.00027671,8]
[425044751,1781445058000,-705.25,0.00027671,8]
[425044750,1781445058000,-500.0,0.00027671,8]
[425044749,1781445058000,-500.0,0.00027671,8]
[425044753,1781445058000,-1840.24,0.00027671,8]
[425044755,1781445058000,-1068.99,0.00027671,8]
[425044756,1781445058000,-500.0,0.00027671,8]
[425044747,1781445058000,-724.8,0.00027671,8]
[425044744,1781445058000,-500.0,0.00027671,8]
[425044754,1781445058000,-500.0,0.00027671,8]
[425044746,1781445058000,-500.0,0.00027671,8]
[425044752,1781445058000,-990.21,0.00027671,8]
[425044748,1781445058000,-1289.83,0.00027671,8]
[425044745,1781445058000,-500.0,0.00027671,8]
[425044758,1781445058000,-500.0,0.00027671,8]
[425044759,1781445058000,-500.0,0.00027671,8]
[425044757,1781445058000,-500.0,0.00027671,8]
[425044695,1781445058000,-500.0,0.00027671,8]
[425044732,1781445058000,-500.0,0.00027671,8]
[425044733,1781445058000,-668.87,0.00027671,8]
[425044760,1781445058000,-500.0,0.00027671,8]
[425044723,1781445058000,-1597.02,0.00027671,8]
[425044729,1781445058000,-500.0,0.00027671,8]
[425044701,1781445058000,-611.63,0.00027671,8]
[425044700,1781445058000,-500.0,0.00027671,8]
[425044702,1781445058000,-500.0,0.00027671,8]
[425044706,1781445058000,-521.64,0.00027671,8]
[425044704,1781445058000,-500.0,0.00027671,8]
[425044708,1781445058000,-500.0,0.00027671,8]
[425044718,1781445058000,-500.0,0.00027671,8]
[425044709,1781445058000,-785.28,0.00027671,8]
[425044707,1781445058000,-500.0,0.00027671,8]
[425044710,1781445058000,-500.0,0.00027671,8]
[425044711,1781445058000,-500.0,0.00027671,8]
[425044712,1781445058000,-500.0,0.00027671,8]
[425044717,1781445058000,-1063.85,0.00027671,8]
[425044699,1781445058000,-500.0,0.00027671,8]
[425044713,1781445058000,-517.07,0.00027671,8]
[425044716,1781445058000,-685.02,0.00027671,8]
[425044727,1781445058000,-500.0,0.00027671,8]
[425044720,1781445058000,-1461.32,0.00027671,8]
[425044728,1781445058000,-500.0,0.00027671,8]
[425044722,1781445058000,-500.0,0.00027671,8]
[425044730,1781445058000,-604.92,0.00027671,8]
[425044731,1781445058000,-500.0,0.00027671,8]
[425044724,1781445058000,-500.0,0.00027671,8]
[425044725,1781445058000,-500.0,0.00027671,8]
[425044719,1781445058000,-500.0,0.00027671,8]
[425044714,1781445058000,-500.0,0.00027671,8]
[425044715,1781445058000,-500.0,0.00027671,8]
[425044721,1781445058000,-500.0,0.00027671,8]
[425044803,1781445059000,-500.0,0.00027671,8]
[425044800,1781445059000,-500.0,0.00027671,8]
[425044797,1781445059000,-500.0,0.00027671,8]
[425044796,1781445059000,-500.0,0.00027671,8]
[425044793,1781445059000,-500.0,0.00027671,8]
[425044798,1781445059000,-500.0,0.00027671,8]
[425044801,1781445059000,-707.63,0.00027671,8]
[425044794,1781445059000,-1147.82,0.00027671,8]
[425044795,1781445059000,-500.0,0.00027671,8]
[425044802,1781445059000,-500.0,0.00027671,8]
[425044799,1781445059000,-530.23,0.00027671,8]
[425044792,1781445059000,-500.0,0.00027671,8]
[425044809,1781445059000,-737.97,0.00027671,8]
[425044807,1781445059000,-521.69,0.00027671,8]
[425044815,1781445059000,-500.0,0.00027671,8]
[425044806,1781445059000,-500.0,0.00027671,8]
[425044804,1781445059000,-500.0,0.00027671,8]
[425044808,1781445059000,-500.0,0.00027671,8]
[425044810,1781445059000,-641.25,0.00027671,8]
[425044814,1781445059000,-500.0,0.00027671,8]
[425044813,1781445059000,-500.0,0.00027671,8]
[425044812,1781445059000,-500.0,0.00027671,8]
[425044811,1781445059000,-741.49,0.00027671,8]
[425044817,1781445059000,-500.0,0.00027671,8]
[425044821,1781445059000,-500.0,0.00027671,8]
[425044790,1781445059000,-500.0,0.00027671,8]
[425044805,1781445059000,-500.0,0.00027671,8]
[425044788,1781445059000,-500.0,0.00027671,8]
[425044777,1781445059000,-500.0,0.00027671,8]
[425044785,1781445059000,-500.0,0.00027671,8]
[425044818,1781445059000,-962.3,0.00027671,8]
[425044761,1781445059000,-500.0,0.00027671,8]
[425044763,1781445059000,-500.0,0.00027671,8]
[425044765,1781445059000,-500.0,0.00027671,8]
[425044762,1781445059000,-500.0,0.00027671,8]
[425044764,1781445059000,-500.0,0.00027671,8]
[425044767,1781445059000,-500.0,0.00027671,8]
[425044766,1781445059000,-500.0,0.00027671,8]
[425044768,1781445059000,-500.0,0.00027671,8]
[425044770,1781445059000,-510.31,0.00027671,8]
[425044769,1781445059000,-500.0,0.00027671,8]
[425044772,1781445059000,-500.0,0.00027671,8]
[425044787,1781445059000,-500.0,0.00027671,8]
[425044773,1781445059000,-500.0,0.00027671,8]
[425044771,1781445059000,-1273.73,0.00027671,8]
[425044774,1781445059000,-500.0,0.00027671,8]
[425044776,1781445059000,-1200.6,0.00027671,8]
[425044775,1781445059000,-500.0,0.00027671,8]
[425044778,1781445059000,-555.15,0.00027671,8]
[425044781,1781445059000,-500.0,0.00027671,8]
[425044791,1781445059000,-500.0,0.00027671,8]
[425044780,1781445059000,-500.0,0.00027671,8]
[425044783,1781445059000,-871.52,0.00027671,8]
[425044782,1781445059000,-500.0,0.00027671,8]
[425044789,1781445059000,-500.0,0.00027671,8]
[425044786,1781445059000,-500.0,0.00027671,8]
[425044779,1781445059000,-500.0,0.00027671,8]
[425044816,1781445059000,-894.13,0.00027671,8]
[425044784,1781445059000,-1082.99,0.00027671,8]
[425044825,1781445059000,-1191.22,0.00027671,8]
[425044852,1781445059000,-529.04,0.00027671,8]
[425044863,1781445059000,-500.0,0.00027671,8]
[425044854,1781445059000,-1270.33,0.00027671,8]
[425044879,1781445059000,-779.55,0.00027671,8]
[425044858,1781445059000,-500.0,0.00027671,8]
[425044856,1781445059000,-568.28,0.00027671,8]
[425044855,1781445059000,-542.07,0.00027671,8]
[425044859,1781445059000,-543.33,0.00027671,8]
[425044861,1781445059000,-500.0,0.00027671,8]
[425044857,1781445059000,-500.0,0.00027671,8]
[425044860,1781445059000,-1366.05,0.00027671,8]
[425044862,1781445059000,-630.64,0.00027671,8]
[425044864,1781445059000,-500.0,0.00027671,8]
[425044868,1781445059000,-500.0,0.00027671,8]
[425044870,1781445059000,-500.0,0.00027671,8]
[425044874,1781445059000,-1066.98,0.00027671,8]
[425044865,1781445059000,-500.0,0.00027671,8]
[425044869,1781445059000,-500.0,0.00027671,8]
[425044866,1781445059000,-500.0,0.00027671,8]
[425044875,1781445059000,-500.0,0.00027671,8]
[425044872,1781445059000,-985.4,0.00027671,8]
[425044867,1781445059000,-500.0,0.00027671,8]
[425044873,1781445059000,-500.0,0.00027671,8]
[425044871,1781445059000,-500.0,0.00027671,8]
[425044877,1781445059000,-500.0,0.00027671,8]
[425044876,1781445059000,-1822.83,0.00027671,8]
[425044824,1781445059000,-500.0,0.00027671,8]
[425044853,1781445059000,-500.0,0.00027671,8]
[425044848,1781445059000,-500.0,0.00027671,8]
[425044878,1781445059000,-645.79,0.00027671,8]
[425044843,1781445059000,-500.0,0.00027671,8]
[425044847,1781445059000,-500.0,0.00027671,8]
[425044823,1781445059000,-662.46,0.00027671,8]
[425044827,1781445059000,-500.0,0.00027671,8]
[425044822,1781445059000,-500.0,0.00027671,8]
[425044820,1781445059000,-500.0,0.00027671,8]
[425044826,1781445059000,-500.0,0.00027671,8]
[425044829,1781445059000,-500.0,0.00027671,8]
[425044828,1781445059000,-1267.69,0.00027671,8]
[425044831,1781445059000,-1030.34,0.00027671,8]
[425044837,1781445059000,-500.0,0.00027671,8]
[425044835,1781445059000,-500.0,0.00027671,8]
[425044833,1781445059000,-602.31,0.00027671,8]
[425044834,1781445059000,-500.0,0.00027671,8]
[425044819,1781445059000,-500.0,0.00027671,8]
[425044838,1781445059000,-500.0,0.00027671,8]
[425044851,1781445059000,-500.0,0.00027671,8]
[425044845,1781445059000,-500.0,0.00027671,8]
[425044849,1781445059000,-500.0,0.00027671,8]
[425044844,1781445059000,-257.5499017,0.00027671,8]
[425044832,1781445059000,-1679.76,0.00027671,8]
[425044842,1781445059000,-500.0,0.00027671,8]
[425044846,1781445059000,-500.0,0.00027671,8]
[425044839,1781445059000,-500.0,0.00027671,8]
[425044850,1781445059000,-500.0,0.00027671,8]
[425044840,1781445059000,-500.0,0.00027671,8]
[425044830,1781445059000,-500.0,0.00027671,8]
[425044836,1781445059000,-1076.81,0.00027671,8]
[425044841,1781445059000,-555.37,0.00027671,8]
[425044922,1781445060000,-500.0,0.00027671,8]
[425044912,1781445060000,-745.44,0.00027671,8]
[425044920,1781445060000,-500.0,0.00027671,8]
[425044918,1781445060000,-237.94,0.00027671,8]
[425044909,1781445060000,-500.0,0.00027671,8]
[425044915,1781445060000,-361.69,0.00027671,8]
[425044914,1781445060000,-1287.69,0.00027671,8]
[425044911,1781445060000,-500.0,0.00027671,8]
[425044913,1781445060000,-556.38,0.00027671,8]
[425044908,1781445060000,-500.0,0.00027671,8]
[425044916,1781445060000,-500.0,0.00027671,8]
[425044921,1781445060000,-500.0,0.00027671,8]
[425044935,1781445060000,-1309.25,0.00027671,8]
[425044919,1781445060000,-500.0,0.00027671,8]
[425044924,1781445060000,-500.0,0.00027671,8]
[425044923,1781445060000,-500.0,0.00027671,8]
[425044934,1781445060000,-703.83,0.00027671,8]
[425044925,1781445060000,-500.0,0.00027671,8]
[425044928,1781445060000,-500.0,0.00027671,8]
[425044927,1781445060000,-638.46,0.00027671,8]
[425044929,1781445060000,-500.0,0.00027671,8]
[425044930,1781445060000,-919.08,0.00027671,8]
[425044931,1781445060000,-500.0,0.00027671,8]
[425044907,1781445060000,-711.7,0.00027671,8]
[425044932,1781445060000,-500.0,0.00027671,8]
[425044917,1781445060000,-386.62,0.00027671,8]
[425044906,1781445060000,-500.0,0.00027671,8]
[425044897,1781445060000,-500.0,0.00027671,8]
[425044903,1781445060000,-422.05,0.00027671,8]
[425044926,1781445060000,-500.0,0.00027671,8]
[425044886,1781445060000,-500.0,0.00027671,8]
[425044880,1781445060000,-500.0,0.00027671,8]
[425044883,1781445060000,-500.0,0.00027671,8]
[425044882,1781445060000,-711.45,0.00027671,8]
[425044881,1781445060000,-531.87,0.00027671,8]
[425044884,1781445060000,-1259.9,0.00027671,8]
[425044885,1781445060000,-500.0,0.00027671,8]
[425044887,1781445060000,-500.0,0.00027671,8]
[425044890,1781445060000,-500.0,0.00027671,8]
[425044892,1781445060000,-904.54,0.00027671,8]
[425044891,1781445060000,-1244.87,0.00027671,8]
[425044896,1781445060000,-948.14,0.00027671,8]
[425044893,1781445060000,-752.03,0.00027671,8]
[425044889,1781445060000,-1995.27,0.00027671,8]
[425044888,1781445060000,-500.0,0.00027671,8]
[425044894,1781445060000,-755.0,0.00027671,8]
[425044895,1781445060000,-500.0,0.00027671,8]
[425044898,1781445060000,-500.0,0.00027671,8]
[425044900,1781445060000,-2255.28,0.00027671,8]
[425044910,1781445060000,-419.35,0.00027671,8]
[425044904,1781445060000,-164.14,0.00027671,8]
[425044902,1781445060000,-584.25,0.00027671,8]
[425044905,1781445060000,-824.44,0.00027671,8]
[425044899,1781445060000,-500.0,0.00027671,8]
[425044901,1781445060000,-500.0,0.00027671,8]
[425044933,1781445060000,-500.0,0.00027671,8]
[425044936,1781445060000,-552.55,0.00027671,8]
[425044941,1781445060000,-500.0,0.00027671,8]
[425044977,1781445060000,-500.0,0.00027671,8]
[425044969,1781445060000,-952.29,0.00027671,8]
[425044966,1781445060000,-504.55,0.00027671,8]
[425044971,1781445060000,-887.68,0.00027671,8]
[425044968,1781445060000,-1421.29,0.00027671,8]
[425044972,1781445060000,-500.0,0.00027671,8]
[425044975,1781445060000,-500.0,0.00027671,8]
[425044976,1781445060000,-1872.4,0.00027671,8]
[425044970,1781445060000,-557.69,0.00027671,8]
[425044974,1781445060000,-500.0,0.00027671,8]
[425044973,1781445060000,-581.51,0.00027671,8]
[425044983,1781445060000,-500.0,0.00027671,8]
[425044982,1781445060000,-973.34,0.00027671,8]
[425044989,1781445060000,-727.73,0.00027671,8]
[425044981,1781445060000,-500.0,0.00027671,8]
[425044986,1781445060000,-500.0,0.00027671,8]
[425044980,1781445060000,-500.0,0.00027671,8]
[425044978,1781445060000,-2079.48,0.00027671,8]
[425044988,1781445060000,-500.0,0.00027671,8]
[425044984,1781445060000,-500.0,0.00027671,8]
[425044985,1781445060000,-500.0,0.00027671,8]
[425044987,1781445060000,-500.0,0.00027671,8]
[425044991,1781445060000,-500.0,0.00027671,8]
[425044990,1781445060000,-527.6,0.00027671,8]
[425044992,1781445060000,-500.0,0.00027671,8]
[425044967,1781445060000,-500.0,0.00027671,8]
[425044965,1781445060000,-500.0,0.00027671,8]
[425044979,1781445060000,-500.0,0.00027671,8]
[425044962,1781445060000,-690.09,0.00027671,8]
[425044963,1781445060000,-728.98,0.00027671,8]
[425044939,1781445060000,-500.0,0.00027671,8]
[425044940,1781445060000,-500.0,0.00027671,8]
[425044942,1781445060000,-500.0,0.00027671,8]
[425044938,1781445060000,-500.0,0.00027671,8]
[425044947,1781445060000,-506.0,0.00027671,8]
[425044937,1781445060000,-500.0,0.00027671,8]
[425044943,1781445060000,-1089.31,0.00027671,8]
[425044944,1781445060000,-500.0,0.00027671,8]
[425044945,1781445060000,-609.75,0.00027671,8]
[425044949,1781445060000,-500.0,0.00027671,8]
[425044948,1781445060000,-500.0,0.00027671,8]
[425044950,1781445060000,-500.0,0.00027671,8]
[425044946,1781445060000,-818.38,0.00027671,8]
[425044964,1781445060000,-500.0,0.00027671,8]
[425044953,1781445060000,-441.12,0.00027671,8]
[425044961,1781445060000,-516.28,0.00027671,8]
[425044960,1781445060000,-500.0,0.00027671,8]
[425044959,1781445060000,-502.46,0.00027671,8]
[425044958,1781445060000,-646.13,0.00027671,8]
[425044956,1781445060000,-500.0,0.00027671,8]
[425044954,1781445060000,-500.0,0.00027671,8]
[425044951,1781445060000,-500.0,0.00027671,8]
[425044955,1781445060000,-500.0,0.00027671,8]
[425044952,1781445060000,-500.0,0.00027671,8]
[425044957,1781445060000,-500.0,0.00027671,8]
[425045030,1781445061000,-1416.51,0.00027671,8]
[425045037,1781445061000,-1069.43,0.00027671,8]
[425045032,1781445061000,-1809.35,0.00027671,8]
[425045035,1781445061000,-500.0,0.00027671,8]
[425045028,1781445061000,-555.38,0.00027671,8]
[425045022,1781445061000,-500.0,0.00027671,8]
[425045029,1781445061000,-1115.2,0.00027671,8]
[425045027,1781445061000,-682.95,0.00027671,8]
[425045026,1781445061000,-941.06,0.00027671,8]
[425045021,1781445061000,-500.0,0.00027671,8]
[425045034,1781445061000,-500.0,0.00027671,8]
[425045033,1781445061000,-500.0,0.00027671,8]
[425045031,1781445061000,-578.16031219,0.00027671,8]
[425045048,1781445061000,-500.0,0.00027671,8]
[425045039,1781445061000,-535.28,0.00027671,8]
[425045042,1781445061000,-500.0,0.00027671,8]
[425045049,1781445061000,-609.56,0.00027671,8]
[425045038,1781445061000,-727.36,0.00027671,8]
[425045041,1781445061000,-873.85,0.00027671,8]
[425045040,1781445061000,-1251.25,0.00027671,8]
[425045043,1781445061000,-1087.85,0.00027671,8]
[425045044,1781445061000,-1637.29,0.00027671,8]
[425045046,1781445061000,-1154.61,0.00027671,8]
[425045045,1781445061000,-593.83,0.00027671,8]
[425045047,1781445061000,-500.0,0.00027671,8]
[425045023,1781445061000,-500.0,0.00027671,8]
[425045036,1781445061000,-501.60103934,0.00027671,8]
[425045019,1781445061000,-500.0,0.00027671,8]
[425045002,1781445061000,-744.48,0.00027671,8]
[425045020,1781445061000,-500.0,0.00027671,8]
[425045001,1781445061000,-500.0,0.00027671,8]
[425045050,1781445061000,-500.0,0.00027671,8]
[425044993,1781445061000,-500.0,0.00027671,8]
[425044994,1781445061000,-273.3167363,0.00027671,8]
[425044995,1781445061000,-742.19,0.00027671,8]
[425044999,1781445061000,-442.21054752,0.00027671,8]
[425045000,1781445061000,-372.57640002,0.00027671,8]
[425044997,1781445061000,-500.0,0.00027671,8]
[425044998,1781445061000,-500.0,0.00027671,8]
[425044996,1781445061000,-650.71,0.00027671,8]
[425045003,1781445061000,-1060.67,0.00027671,8]
[425045004,1781445061000,-980.65,0.00027671,8]
[425045005,1781445061000,-500.0,0.00027671,8]
[425045007,1781445061000,-1000.0,0.00027671,8]
[425045013,1781445061000,-500.0,0.00027671,8]
[425045012,1781445061000,-590.03,0.00027671,8]
[425045008,1781445061000,-1489.87,0.00027671,8]
[425045006,1781445061000,-1387.16,0.00027671,8]
[425045011,1781445061000,-500.0,0.00027671,8]
[425045009,1781445061000,-500.0,0.00027671,8]
[425045010,1781445061000,-986.77,0.00027671,8]
[425045015,1781445061000,-500.0,0.00027671,8]
[425045016,1781445061000,-500.0,0.00027671,8]
[425045014,1781445061000,-500.0,0.00027671,8]
[425045017,1781445061000,-500.0,0.00027671,8]
[425045025,1781445061000,-1215.0,0.00027671,8]
[425045018,1781445061000,-833.3,0.00027671,8]
[425045024,1781445061000,-500.0,0.00027671,8]
[425045061,1781445061000,-500.0,0.00027671,8]
[425045112,1781445061000,-500.0,0.00027671,8]
[425045051,1781445061000,-761.39,0.00027671,8]
[425045085,1781445061000,-737.69,0.00027671,8]
[425045087,1781445061000,-500.0,0.00027671,8]
[425045098,1781445061000,-845.41,0.00027671,8]
[425045097,1781445061000,-965.48,0.00027671,8]
[425045086,1781445061000,-1695.28,0.00027671,8]
[425045088,1781445061000,-650.28,0.00027671,8]
[425045090,1781445061000,-500.0,0.00027671,8]
[425045089,1781445061000,-500.0,0.00027671,8]
[425045091,1781445061000,-543.16,0.00027671,8]
[425045093,1781445061000,-1346.5,0.00027671,8]
[425045092,1781445061000,-500.0,0.00027671,8]
[425045095,1781445061000,-1418.93,0.00027671,8]
[425045094,1781445061000,-500.0,0.00027671,8]
[425045096,1781445061000,-571.74039601,0.00027671,8]
[425045099,1781445061000,-996.65,0.00027671,8]
[425045101,1781445061000,-589.4,0.00027671,8]
[425045103,1781445061000,-500.0,0.00027671,8]
[425045110,1781445061000,-500.0,0.00027671,8]
[425045100,1781445061000,-500.0,0.00027671,8]
[425045106,1781445061000,-878.83,0.00027671,8]
[425045109,1781445061000,-533.07,0.00027671,8]
[425045108,1781445061000,-741.63,0.00027671,8]
[425045105,1781445061000,-807.12,0.00027671,8]
[425045102,1781445061000,-1592.8,0.00027671,8]
[425045055,1781445061000,-732.72,0.00027671,8]
[425045107,1781445061000,-500.0,0.00027671,8]
[425045111,1781445061000,-1641.61,0.00027671,8]
[425045082,1781445061000,-567.67,0.00027671,8]
[425045081,1781445061000,-500.0,0.00027671,8]
[425045104,1781445061000,-500.0,0.00027671,8]
[425045084,1781445061000,-1000.0,0.00027671,8]
[425045080,1781445061000,-500.0,0.00027671,8]
[425045054,1781445061000,-881.93,0.00027671,8]
[425045053,1781445061000,-500.0,0.00027671,8]
[425045052,1781445061000,-858.53,0.00027671,8]
[425045056,1781445061000,-1017.45,0.00027671,8]
[425045057,1781445061000,-999.22,0.00027671,8]
[425045059,1781445061000,-873.58,0.00027671,8]
[425045060,1781445061000,-500.0,0.00027671,8]
[425045063,1781445061000,-601.93,0.00027671,8]
[425045066,1781445061000,-500.0,0.00027671,8]
[425045073,1781445061000,-500.0,0.00027671,8]
[425045064,1781445061000,-500.0,0.00027671,8]
[425045062,1781445061000,-500.0,0.00027671,8]
[425045058,1781445061000,-500.0,0.00027671,8]
[425045069,1781445061000,-512.7,0.00027671,8]
[425045065,1781445061000,-500.0,0.00027671,8]
[425045075,1781445061000,-500.0,0.00027671,8]
[425045078,1781445061000,-500.0,0.00027671,8]
[425045079,1781445061000,-500.0,0.00027671,8]
[425045076,1781445061000,-642.8,0.00027671,8]
[425045077,1781445061000,-842.97,0.00027671,8]
[425045067,1781445061000,-500.0,0.00027671,8]
[425045071,1781445061000,-500.0,0.00027671,8]
[425045074,1781445061000,-500.0,0.00027671,8]
[425045083,1781445061000,-589.40150959,0.00027671,8]
[425045072,1781445061000,-500.0,0.00027671,8]
[425045068,1781445061000,-500.0,0.00027671,8]
[425045070,1781445061000,-500.0,0.00027671,8]
[425045136,1781445062000,-685.98,0.00027671,8]
[425045149,1781445062000,-500.0,0.00027671,8]
[425045139,1781445062000,-1095.51,0.00027671,8]
[425045141,1781445062000,-588.7,0.00027671,8]
[425045140,1781445062000,-577.5,0.00027671,8]
[425045142,1781445062000,-566.21,0.00027671,8]
[425045152,1781445062000,-500.0,0.00027671,8]
[425045150,1781445062000,-500.0,0.00027671,8]
[425045155,1781445062000,-801.14,0.00027671,8]
[425045153,1781445062000,-1099.17,0.00027671,8]
[425045143,1781445062000,-500.0,0.00027671,8]
[425045156,1781445062000,-268.67750311,0.00027671,8]
[425045147,1781445062000,-500.0,0.00027671,8]
[425045148,1781445062000,-614.47,0.00027671,8]
[425045157,1781445062000,-2335.6,0.00027671,8]
[425045154,1781445062000,-1606.46,0.00027671,8]
[425045159,1781445062000,-500.0,0.00027671,8]
[425045169,1781445062000,-500.0,0.00027671,8]
[425045158,1781445062000,-500.0,0.00027671,8]
[425045160,1781445062000,-500.0,0.00027671,8]
[425045161,1781445062000,-595.08,0.00027671,8]
[425045162,1781445062000,-747.52,0.00027671,8]
[425045138,1781445062000,-500.0,0.00027671,8]
[425045151,1781445062000,-1341.2,0.00027671,8]
[425045134,1781445062000,-506.68,0.00027671,8]
[425045132,1781445062000,-500.0,0.00027671,8]
[425045146,1781445062000,-618.14,0.00027671,8]
[425045163,1781445062000,-500.0,0.00027671,8]
[425045122,1781445062000,-1516.59,0.00027671,8]
[425045115,1781445062000,-1335.94,0.00027671,8]
[425045114,1781445062000,-1193.58,0.00027671,8]
[425045113,1781445062000,-500.0,0.00027671,8]
[425045116,1781445062000,-500.0,0.00027671,8]
[425045120,1781445062000,-1227.19,0.00027671,8]
[425045117,1781445062000,-1602.34,0.00027671,8]
[425045121,1781445062000,-500.0,0.00027671,8]